fUST/lending_fUST_20250615
["ID","MTS","AMOUNT","RATE_DAILY","PERIOD"]
[365826372,1749941441792,-511.38,0.00022191,4]
[365826373,1749941441802,-1849.64,0.00022191,4]
[365826374,1749941441811,-460.0,0.00022191,4]
[365826375,1749941441821,-642.76,0.00022191,4]
[365826376,1749941441830,-460.0,0.00022191,4]
[365826377,1749941441840,-460.0,0.00022191,4]
[365826378,1749941441849,-488.07271145,0.00022191,4]
[365826379,1749941441858,-460.0,0.00022191,4]
[365826380,1749941441867,-602.44,0.00022191,4]
[365826381,1749941441876,-460.0,0.00022191,4]
[365826382,1749941441885,-460.0,0.00022191,4]
[365826383,1749941441895,-500.0,0.00022191,4]
[365826384,1749941441904,-460.0,0.00022191,4]
[365826385,1749941441913,-460.0,0.00022191,4]
[365826386,1749941441922,-420.0,0.00022191,4]
[365826387,1749941441931,-460.0,0.00022191,4]
[365826388,1749941441940,-460.0,0.00022191,4]
[365826389,1749941441949,-460.0,0.00022191,4]
[365826390,1749941441959,-699.52,0.00022191,4]
[365826391,1749941441968,-460.0,0.00022191,4]
[365826392,1749941441978,-460.0,0.00022191,4]
[365826393,1749941441990,-567.77,0.00022191,4]
[365826394,1749941441999,-593.86,0.00022191,4]
[365826395,1749941442008,-688.93,0.00022191,4]
[365826396,1749941442017,-460.0,0.00022191,4]
[365826397,1749941442027,-645.1,0.00022191,4]
[365826398,1749941442036,-990.92,0.00022191,4]
[365826399,1749941442045,-460.0,0.00022191,4]
[365826400,1749941442054,-460.0,0.00022191,4]
[365826401,1749941442063,-1298.18,0.00022191,4]
[365826402,1749941442072,-460.0,0.00022191,4]
[365826403,1749941442081,-460.0,0.00022191,4]
[365826404,1749941442091,-400.0,0.00022191,4]
[365826405,1749941442100,-460.0,0.00022191,4]
[365826406,1749941442109,-186.85609671,0.00022191,4]
[365826407,1749941442119,-532.33,0.00022191,4]
[365826408,1749941442129,-460.0,0.00022191,4]
[365826409,1749941442138,-1217.66,0.00022191,4]
[365826410,1749941442147,-485.74,0.00022191,4]
[365826411,1749941442157,-460.0,0.00022191,4]
[365826412,1749941442166,-315.55,0.00022191,4]
[365826413,1749941442175,-460.0,0.00022191,4]
[365826414,1749941442184,-983.72,0.00022191,4]
[365826415,1749941442194,-460.0,0.00022191,4]
[365826416,1749941442206,-460.0,0.00022191,4]
[365826417,1749941442216,-1262.65,0.00022191,4]
[365826418,1749941442226,-386.13960987,0.00022191,4]
[365826419,1749941442236,-460.0,0.00022191,4]
[365826420,1749941442247,-918.54,0.00022191,4]
[365826421,1749941442256,-460.0,0.00022191,4]
[365826422,1749941442265,-460.0,0.00022191,4]
[365826423,1749941442275,-3465.69,0.00022191,4]
[365826424,1749941442284,-315.75777632,0.00022191,4]
[365826426,1749941442293,-460.0,0.00022191,4]
[365826427,1749941442303,-4447.51,0.00022191,4]
[365826428,1749941442313,-767.57,0.00022191,4]
[365826429,1749941442322,-460.0,0.00022191,4]
[365826430,1749941442331,-151.38596645,0.00022191,4]
[365826431,1749941442341,-327.4615521,0.00022191,4]
[365826433,1749941442350,-936.94,0.00022191,4]
[365826434,1749941442359,-460.0,0.00022191,4]
[365826435,1749941442368,-434.26522277,0.00022191,4]
[365826437,1749941442377,-460.0,0.00022191,4]
[365826438,1749941442387,-3838.82,0.00022191,4]
[365826440,1749941442397,-4255.56,0.00022191,4]
[365826441,1749941442408,-460.0,0.00022191,4]
[365826442,1749941442417,-1525.68,0.00022191,4]
[365826443,1749941442426,-460.0,0.00022191,4]
[365826444,1749941442435,-460.0,0.00022191,4]
[365826445,1749941442445,-340.0,0.00022191,4]
[365826446,1749941442454,-460.0,0.00022191,4]
[365826447,1749941442464,-460.0,0.00022191,4]
[365826448,1749941442476,-4635.89,0.00022191,4]
[365826449,1749941442487,-460.0,0.00022191,4]
[365826451,1749941442497,-1064.79,0.00022191,4]
[365826453,1749941442508,-460.0,0.00022191,4]
[365826454,1749941442518,-460.0,0.00022191,4]
[365826455,1749941442527,-410.0,0.00022191,4]
[365826457,1749941442537,-911.56,0.00022191,4]
[365826458,1749941442546,-466.75,0.00022191,4]
[365826459,1749941442556,-290.0,0.00022191,4]
[365826460,1749941442566,-584.35,0.00022191,4]
[365826461,1749941442577,-460.0,0.00022191,4]
[365826462,1749941442586,-5402.68,0.00022191,4]
[365826463,1749941442596,-460.0,0.00022191,4]
[365826464,1749941442606,-1955.05,0.00022191,4]
[365826465,1749941442615,-460.0,0.00022191,4]
[365826466,1749941442625,-483.76,0.00022191,4]
[365826467,1749941442634,-1061.54,0.00022191,4]
[365826468,1749941442644,-183.13799503,0.00022191,4]
[365826469,1749941442653,-460.0,0.00022191,2]
[365826470,1749941442663,-3533.74,0.00022191,4]
[365826471,1749941442672,-460.0,0.00022191,4]
[365826472,1749941442681,-460.0,0.00022191,4]
[365826473,1749941442691,-578.06,0.00022191,4]
[365826474,1749941442700,-3827.45,0.00022191,4]
[365826475,1749941442710,-479.79,0.00022191,4]
[365826476,1749941442720,-460.0,0.00022191,4]
[365826477,1749941442730,-532.87,0.00022191,4]
[365826478,1749941442739,-460.0,0.00022191,4]
[365826479,1749941442748,-694.44,0.00022191,4]
[365826480,1749941442761,-460.0,0.00022191,4]
[365826481,1749941442771,-460.0,0.00022191,4]
[365826482,1749941442780,-460.0,0.00022191,4]
[365826483,1749941442789,-460.0,0.00022191,4]
[365826484,1749941442798,-675.74,0.00022191,4]
[365826485,1749941442808,-460.0,0.00022191,4]
[365826486,1749941442818,-2189.97,0.00022191,4]
[365826487,1749941442828,-1675.63,0.00022191,4]
[365826488,1749941442838,-1414.76,0.00022191,4]
[365826490,1749941442847,-1892.61,0.00022191,4]
[365826491,1749941442857,-210.08714027,0.00022242,2]
[365826492,1749941442866,-185.18498074,0.00022391,2]
[365826493,1749941442876,-536.41,0.00022464,4]
[365826494,1749941442886,-536.41,0.00022464,4]
[365826495,1749941442896,-536.41,0.00022464,4]
[365826496,1749941442906,-536.41,0.00022464,4]
[365826497,1749941442915,-460.0,0.00022465,4]
[365826498,1749941442925,-400.0,0.00022465,4]
[365826499,1749941442934,-400.0,0.00022465,4]
[365826500,1749941442943,-460.0,0.00022465,4]
[365826501,1749941442952,-460.0,0.00022465,4]
[365826502,1749941442962,-460.0,0.00022465,4]
[365826503,1749941442971,-460.0,0.00022465,4]
[365826504,1749941442981,-410.0,0.00022465,4]
[365826505,1749941442997,-460.0,0.00022465,4]
[365826507,1749941443010,-460.0,0.00022465,4]
[365826508,1749941443019,-460.0,0.00022465,4]
[365826509,1749941443030,-380.0,0.00022465,4]
[365826510,1749941443040,-826.52,0.00022465,4]
[365826511,1749941443050,-455.59603663,0.00022465,4]
[365826512,1749941443061,-460.0,0.00022465,4]
[365826513,1749941443071,-460.0,0.00022465,4]
[365826514,1749941443080,-460.0,0.00022465,4]
[365826515,1749941443089,-531.46,0.00022465,4]
[365826516,1749941443098,-521.72815157,0.00022465,4]
[365826517,1749941443108,-460.0,0.00022465,4]
[365826518,1749941443118,-496.46423751,0.00022465,4]
[365826519,1749941443127,-400.0,0.00022465,4]
[365826520,1749941443136,-400.0,0.00022465,4]
[365826521,1749941443146,-460.0,0.00022465,4]
[365826522,1749941443155,-460.0,0.00022465,4]
[365826523,1749941443164,-370.0,0.00022465,4]
[365826524,1749941443175,-370.0,0.00022465,4]
[365826525,1749941443184,-460.0,0.00022465,4]
[365826526,1749941443193,-460.0,0.00022465,4]
[365826527,1749941443202,-460.0,0.00022465,4]
[365826528,1749941443214,-460.0,0.00022465,4]
[365826530,1749941443224,-460.0,0.00022465,4]
[365826531,1749941443233,-460.0,0.00022465,4]
[365826532,1749941443242,-460.0,0.00022465,4]
[365826533,1749941443252,-460.0,0.00022465,4]
[365826534,1749941443263,-410.0,0.00022465,4]
[365826535,1749941443273,-460.0,0.00022465,4]
[365826536,1749941443282,-460.0,0.00022465,4]
[365826537,1749941443292,-460.0,0.00022465,4]
[365826538,1749941443302,-460.0,0.00022465,4]
[365826539,1749941443311,-460.0,0.00022465,4]
[365826540,1749941443321,-460.0,0.00022465,4]
[365826541,1749941443331,-460.0,0.00022465,4]
[365826542,1749941443340,-400.0,0.00022465,4]
[365826543,1749941443350,-460.0,0.00022465,4]
[365826544,1749941443360,-460.0,0.00022465,4]
[365826545,1749941443369,-460.0,0.00022465,4]
[365826546,1749941443380,-1179.48,0.00022465,4]
[365826547,1749941443389,-460.0,0.00022465,4]
[365826548,1749941443398,-460.0,0.00022465,4]
[365826549,1749941443407,-460.0,0.00022465,4]
[365826550,1749941443417,-390.0,0.00022465,4]
[365826551,1749941443427,-460.0,0.00022465,4]
[365826552,1749941443436,-460.0,0.00022465,4]
[365826553,1749941443445,-460.0,0.00022465,4]
[365826554,1749941443455,-460.0,0.00022465,4]
[365826555,1749941443464,-460.0,0.00022465,4]
[365826556,1749941443473,-702.71,0.00022465,4]
[365826557,1749941443482,-494.55347429,0.00022465,4]
[365826558,1749941443491,-507.69,0.00022465,4]
[365826559,1749941443501,-460.0,0.00022465,4]
[365826560,1749941443512,-460.0,0.00022465,4]
[365826561,1749941443521,-460.0,0.00022465,4]
[365826562,1749941443531,-500.64,0.00022465,4]
[365826563,1749941443540,-370.0,0.00022465,4]
[365826564,1749941443550,-460.0,0.00022465,4]
[365826565,1749941443559,-460.0,0.00022465,4]
[365826566,1749941443568,-460.0,0.00022465,4]
[365826567,1749941443577,-1692.12,0.00022465,4]
[365826568,1749941443586,-400.0,0.00022465,4]
[365826569,1749941443596,-430.0,0.00022465,4]
[365826570,1749941443605,-400.09792632,0.00022465,4]
[365826571,1749941443615,-4195.42,0.00022465,4]
[365826572,1749941443624,-460.0,0.00022465,4]
[365826573,1749941443633,-400.0,0.00022465,4]
[365826574,1749941443642,-460.0,0.00022465,4]
[365826575,1749941443651,-561.65,0.00022465,4]
[365826576,1749941443660,-511.38,0.00022465,4]
[365826577,1749941443669,-1849.64,0.00022465,4]
[365826578,1749941443679,-460.0,0.00022465,4]
[365826579,1749941443688,-642.76,0.00022465,4]
[365826580,1749941443698,-460.0,0.00022465,4]
[365826581,1749941443707,-370.0,0.00022465,4]
[365826582,1749941443716,-460.0,0.00022465,4]
[365826583,1749941443725,-602.44,0.00022465,4]
[365826585,1749941443734,-460.0,0.00022465,4]
[365826586,1749941443743,-460.0,0.00022465,4]
[365826587,1749941443755,-500.0,0.00022465,4]
[365826588,1749941443764,-460.0,0.00022465,4]
[365826589,1749941443773,-460.0,0.00022465,4]
[365826590,1749941443783,-370.0,0.00022465,4]
[365826591,1749941443791,-460.0,0.00022465,4]
[365826592,1749941443801,-303.43755113,0.00022465,4]
[365826593,1749941443810,-699.52,0.00022465,4]
[365826594,1749941443819,-460.0,0.00022465,4]
[365826595,1749941443828,-460.0,0.00022465,4]
[365826596,1749941443837,-567.77,0.00022465,4]
[365826597,1749941443846,-593.86,0.00022465,4]
[365826598,1749941443855,-688.93,0.00022465,4]
[365826599,1749941443864,-321.68518405,0.00022465,4]
[365826600,1749941443874,-645.1,0.00022465,4]
[365826601,1749941443883,-990.92,0.00022465,4]
[365826602,1749941443893,-460.0,0.00022465,4]
[365826603,1749941443902,-460.0,0.00022465,4]
[365826604,1749941443911,-1298.18,0.00022465,4]
[365826605,1749941443920,-450.0,0.00022465,4]
[365826606,1749941443929,-226.80058858,0.00022465,4]
[365826607,1749941443939,-460.0,0.00022465,4]
[365826608,1749941443948,-532.33,0.00022465,4]
[365826609,1749941443957,-370.0,0.00022465,4]
[365826610,1749941444070,-1217.66,0.00022465,4]
[365826611,1749941444080,-485.74,0.00022465,4]
[365826612,1749941444089,-460.0,0.00022465,4]
[365826613,1749941444098,-220.99538037,0.00022465,4]
[365826614,1749941444107,-983.72,0.00022465,4]
[365826615,1749941444118,-460.0,0.00022465,4]
[365826616,1749941444127,-460.0,0.00022465,4]
[365826617,1749941444137,-1262.65,0.00022465,4]
[365826618,1749941444148,-460.0,0.00022465,4]
[365826619,1749941444158,-918.54,0.00022465,4]
[365826620,1749941444167,-370.0,0.00022465,4]
[365826621,1749941444176,-460.0,0.00022465,4]
[365826622,1749941444186,-3465.69,0.00022465,4]
[365826623,1749941444196,-460.0,0.00022465,4]
[365826624,1749941444206,-4447.51,0.00022465,4]
[365826625,1749941444216,-767.57,0.00022465,4]
[365826626,1749941444226,-416.02,0.00022465,4]
[365826627,1749941444236,-936.94,0.00022465,4]
[365826628,1749941444245,-370.0,0.00022465,4]
[365826629,1749941444256,-460.0,0.00022465,4]
[365826630,1749941444266,-3838.82,0.00022465,4]
[365826631,1749941444276,-4255.56,0.00022465,4]
[365826632,1749941444286,-460.0,0.00022465,4]
[365826633,1749941444296,-1525.68,0.00022465,4]
[365826634,1749941444306,-460.0,0.00022465,4]
[365826635,1749941444315,-370.0,0.00022465,4]
[365826636,1749941444324,-447.35543612,0.00022465,4]
[365826637,1749941444335,-460.0,0.00022465,4]
[365826638,1749941444345,-460.0,0.00022465,4]
[365826639,1749941444355,-4635.89,0.00022465,4]
[365826640,1749941444364,-1064.79,0.00022465,4]
[365826641,1749941444374,-460.0,0.00022465,4]
[365826642,1749941444384,-460.0,0.00022465,4]
[365826643,1749941444393,-911.56,0.00022465,4]
[365826644,1749941444402,-466.75,0.00022465,4]
[365826645,1749941444412,-584.35,0.00022465,4]
[365826646,1749941444422,-460.0,0.00022465,4]
[365826647,1749941444433,-5402.68,0.00022465,4]
[365826648,1749941444443,-370.0,0.00022465,4]
[365826649,1749941444452,-1955.05,0.00022465,4]
[365826650,1749941444462,-460.0,0.00022465,4]
[365826651,1749941444471,-483.76,0.00022465,4]
[365826652,1749941444481,-1061.54,0.00022465,4]
[365826653,1749941444490,-460.0,0.00022465,2]
[365826654,1749941444500,-3533.74,0.00022465,4]
[365826655,1749941444511,-455.28004367,0.00022465,4]
[365826656,1749941444521,-460.0,0.00022465,4]
[365826657,1749941444530,-578.06,0.00022465,4]
[365826658,1749941444539,-3827.45,0.00022465,4]
[365826659,1749941444550,-479.79,0.00022465,4]
[365826660,1749941444559,-370.0,0.00022465,4]
[365826661,1749941444569,-532.87,0.00022465,4]
[365826662,1749941444578,-460.0,0.00022465,4]
[365826663,1749941444587,-694.44,0.00022465,4]
[365826664,1749941444597,-460.0,0.00022465,4]
[365826665,1749941444606,-370.0,0.00022465,4]
[365826666,1749941444616,-460.0,0.00022465,4]
[365826667,1749941444625,-347.60761814,0.00022465,4]
[365826668,1749941444635,-675.74,0.00022465,4]
[365826669,1749941444644,-360.0,0.00022465,4]
[365826670,1749941444654,-2189.97,0.00022465,4]
[365826671,1749941444663,-1675.63,0.00022465,4]
[365826672,1749941444673,-1414.76,0.00022465,4]
[365826673,1749941444682,-1892.61,0.00022465,4]
[365826674,1749941444691,-500.0,0.00022473,2]
[365826675,1749941444700,-507.66297015,0.00022473,2]
[365826676,1749941444710,-500.0,0.00022473,2]
[365826677,1749941444719,-500.0,0.00022473,2]
[365826678,1749941444729,-500.0,0.00022473,2]
[365826679,1749941444738,-500.0,0.00022473,2]
[365826680,1749941444749,-500.0,0.00022473,2]
[365826681,1749941444760,-500.0,0.00022473,2]
[365826682,1749941444770,-500.0,0.00022473,2]
[365826683,1749941444780,-500.0,0.00022473,2]
[365826684,1749941444790,-500.0,0.00022473,2]
[365826685,1749941444799,-600.0,0.00022473,2]
[365826686,1749941444809,-500.0,0.00022473,2]
[365826687,1749941444818,-1000.0,0.00022521,2]
[365826688,1749941444828,-176.85789988,0.00022588,2]
[365826689,1749941444838,-232.9049283,0.00022651,2]
[365826690,1749941444848,-536.41,0.00022664,4]
[365826691,1749941444859,-160.0,0.00022684,2]
[365826692,1749941444869,-160.0,0.00022684,2]
[365826693,1749941444879,-845.10789306,0.00022684,2]
[365826694,1749941444889,-160.0,0.00022684,2]
[365826695,1749941444898,-424.40141186,0.00022684,2]
[365826696,1749941444908,-160.0,0.00022684,2]
[365826697,1749941444918,-229.82479369,0.00022684,2]
[365826698,1749941444927,-835.41710878,0.00022684,2]
[365826699,1749941444936,-213.28201367,0.00022684,2]
[365826700,1749941444946,-12533.30537164,0.00022684,2]
[365826701,1749941444955,-160.0,0.00022684,2]
[365826702,1749941444964,-1688.0,0.00022732,2]
[365826703,1749941444974,-5000.0,0.00022732,2]
[365826704,1749941444984,-500.0,0.00022732,2]
[365826705,1749941444996,-500.0,0.00022732,2]
[365826706,1749941445005,-500.0,0.00022732,2]
[365826707,1749941445017,-500.0,0.00022732,2]
[365826708,1749941445029,-500.0,0.00022732,2]
[365826709,1749941445039,-500.0,0.00022732,2]
[365826710,1749941445048,-500.0,0.00022732,2]
[365826711,1749941445059,-500.0,0.00022732,2]
[365826712,1749941445068,-207.4,0.00022732,2]
[365826713,1749941445077,-500.0,0.00022732,2]
[365826714,1749941445087,-500.0,0.00022732,2]
[365826715,1749941445096,-500.0,0.00022732,2]
[365826716,1749941445106,-500.0,0.00022732,2]
[365826717,1749941445115,-500.0,0.00022732,2]
[365826718,1749941445124,-500.0,0.00022732,2]
[365826719,1749941445134,-500.0,0.00022732,2]
[365826720,1749941445143,-536.41,0.00022738,4]
[365826721,1749941445154,-536.41,0.00022738,4]
[365826722,1749941445163,-536.41,0.00022738,4]
[365826723,1749941445173,-460.0,0.00022739,4]
[365826724,1749941445183,-264.57872674,0.00022739,4]
[365826725,1749941445192,-380.0,0.00022739,4]
[365826726,1749941445202,-460.0,0.00022739,4]
[365826727,1749941445211,-257.71046366,0.00022739,4]
[365826728,1749941445221,-460.0,0.00022739,4]
[365826729,1749941445230,-460.0,0.00022739,4]
[365826730,1749941445240,-460.0,0.00022739,4]
[365826731,1749941445250,-826.52,0.00022739,4]
[365826732,1749941445269,-460.0,0.00022739,4]
[365826734,1749941445283,-460.0,0.00022739,4]
[365826735,1749941445297,-332.10572513,0.00022739,4]
[365826736,1749941445310,-531.46,0.00022739,4]
[365826737,1749941445323,-460.0,0.00022739,4]
[365826738,1749941445336,-460.0,0.00022739,4]
[365826739,1749941445350,-380.0,0.00022739,4]
[365826740,1749941445363,-370.0,0.00022739,4]
[365826741,1749941445378,-460.0,0.00022739,4]
[365826742,1749941445392,-340.0,0.00022739,4]
[365826744,1749941445407,-460.0,0.00022739,4]
[365826746,1749941445421,-340.0,0.00022739,4]
[365826747,1749941445433,-460.0,0.00022739,4]
[365826748,1749941445447,-460.0,0.00022739,4]
[365826749,1749941445460,-460.0,0.00022739,4]
[365826750,1749941445475,-460.0,0.00022739,4]
[365826751,1749941445489,-460.0,0.00022739,4]
[365826752,1749941445502,-460.0,0.00022739,4]
[365826753,1749941445518,-450.0,0.00022739,4]
[365826754,1749941445529,-460.0,0.00022739,4]
[365826755,1749941445543,-460.0,0.00022739,4]
[365826756,1749941445557,-460.0,0.00022739,4]
[365826757,1749941445570,-460.0,0.00022739,4]
[365826758,1749941445585,-460.0,0.00022739,4]
[365826759,1749941445599,-340.0,0.00022739,4]
[365826760,1749941445614,-1179.48,0.00022739,4]
[365826761,1749941445629,-460.0,0.00022739,4]
[365826762,1749941445642,-460.0,0.00022739,4]
[365826763,1749941445653,-460.0,0.00022739,4]
[365826764,1749941445664,-460.0,0.00022739,4]
[365826765,1749941445676,-460.0,0.00022739,4]
[365826766,1749941445689,-460.0,0.00022739,4]
[365826767,1749941445704,-460.0,0.00022739,4]
[365826768,1749941445717,-490.0,0.00022739,4]
[365826769,1749941445728,-702.71,0.00022739,4]
[365826770,1749941445740,-507.69,0.00022739,4]
[365826771,1749941445753,-460.0,0.00022739,4]
[365826772,1749941445768,-460.0,0.00022739,4]
[365826773,1749941445779,-460.0,0.00022739,4]
[365826774,1749941445791,-500.64,0.00022739,4]
[365826775,1749941445802,-460.0,0.00022739,4]
[365826776,1749941445814,-460.0,0.00022739,4]
[365826777,1749941445827,-460.0,0.00022739,4]
[365826778,1749941445838,-1692.12,0.00022739,4]
[365826779,1749941445850,-4195.42,0.00022739,4]
[365826780,1749941445862,-470.0,0.00022739,4]
[365826781,1749941445873,-479.17295753,0.00022739,4]
[365826782,1749941445885,-511.38,0.00022739,4]
[365826783,1749941445896,-1849.64,0.00022739,4]
[365826784,1749941445908,-340.0,0.00022739,4]
[365826785,1749941445919,-642.76,0.00022739,4]
[365826786,1749941445931,-460.0,0.00022739,4]
[365826787,1749941445943,-460.0,0.00022739,4]
[365826788,1749941445955,-602.44,0.00022739,4]
[365826790,1749941445966,-460.0,0.00022739,4]
[365826791,1749941445978,-360.0,0.00022739,4]
[365826792,1749941445994,-500.0,0.00022739,4]
[365826793,1749941446016,-460.0,0.00022739,4]
[365826794,1749941446028,-460.0,0.00022739,4]
[365826795,1749941446039,-460.0,0.00022739,4]
[365826796,1749941446051,-699.52,0.00022739,4]
[365826797,1749941446062,-340.0,0.00022739,4]
[365826798,1749941446074,-460.0,0.00022739,4]
[365826799,1749941446085,-567.77,0.00022739,4]
[365826800,1749941446097,-593.86,0.00022739,4]
[365826801,1749941446108,-688.93,0.00022739,4]
[365826802,1749941446120,-645.1,0.00022739,4]
[365826803,1749941446132,-990.92,0.00022739,4]
[365826804,1749941446143,-460.0,0.00022739,4]
[365826805,1749941446155,-360.0,0.00022739,4]
[365826806,1749941446167,-1298.18,0.00022739,4]
[365826807,1749941446178,-460.0,0.00022739,4]
[365826808,1749941446190,-532.33,0.00022739,4]
[365826809,1749941446202,-1217.66,0.00022739,4]
[365826810,1749941446213,-485.74,0.00022739,4]
[365826811,1749941446225,-460.0,0.00022739,4]
[365826812,1749941446236,-983.72,0.00022739,4]
[365826813,1749941446248,-460.0,0.00022739,4]
[365826814,1749941446261,-460.0,0.00022739,4]
[365826815,1749941446273,-1262.65,0.00022739,4]
[365826816,1749941446285,-460.0,0.00022739,4]
[365826817,1749941446296,-918.54,0.00022739,4]
[365826818,1749941446307,-460.0,0.00022739,4]
[365826819,1749941446319,-3465.69,0.00022739,4]
[365826820,1749941446331,-360.0,0.00022739,4]
[365826821,1749941446343,-4447.51,0.00022739,4]
[365826822,1749941446355,-767.57,0.00022739,4]
[365826823,1749941446367,-936.94,0.00022739,4]
[365826824,1749941446378,-460.0,0.00022739,4]
[365826825,1749941446390,-3838.82,0.00022739,4]
[365826826,1749941446402,-4255.56,0.00022739,4]
[365826827,1749941446414,-460.0,0.00022739,4]
[365826828,1749941446426,-1525.68,0.00022739,4]
[365826829,1749941446440,-460.0,0.00022739,4]
[365826830,1749941446453,-460.0,0.00022739,4]
[365826831,1749941446465,-460.0,0.00022739,4]
[365826832,1749941446477,-4635.89,0.00022739,4]
[365826833,1749941446488,-1064.79,0.00022739,4]
[365826834,1749941446499,-460.0,0.00022739,4]
[365826835,1749941446513,-369.20581098,0.00022739,4]
[365826836,1749941446526,-911.56,0.00022739,4]
[365826837,1749941446538,-466.75,0.00022739,4]
[365826838,1749941446548,-584.35,0.00022739,4]
[365826839,1749941446557,-520.0,0.00022739,4]
[365826840,1749941446567,-5402.68,0.00022739,4]
[365826841,1749941446578,-1955.05,0.00022739,4]
[365826842,1749941446587,-460.0,0.00022739,4]
[365826843,1749941446598,-483.76,0.00022739,4]
[365826844,1749941446607,-1061.54,0.00022739,4]
[365826845,1749941446617,-460.0,0.00022739,2]
[365826846,1749941446627,-3533.74,0.00022739,4]
[365826847,1749941446637,-460.0,0.00022739,4]
[365826848,1749941446647,-578.06,0.00022739,4]
[365826849,1749941446834,-3827.45,0.00022739,4]
[365826850,1749941446847,-479.79,0.00022739,4]
[365826851,1749941446857,-532.87,0.00022739,4]
[365826852,1749941446867,-460.0,0.00022739,4]
[365826853,1749941446876,-694.44,0.00022739,4]
[365826854,1749941446886,-460.0,0.00022739,4]
[365826855,1749941446896,-460.0,0.00022739,4]
[365826856,1749941446906,-675.74,0.00022739,4]
[365826857,1749941446915,-2189.97,0.00022739,4]
[365826858,1749941446925,-1675.63,0.00022739,4]
[365826859,1749941446934,-1414.76,0.00022739,4]
[365826860,1749941446944,-1892.61,0.00022739,4]
[365826861,1749941446953,-428.57648092,0.00022763,2]
[365826862,1749941446963,-150.0,0.00022773,2]
[365826863,1749941446972,-253.33008763,0.00022819,2]
[365826864,1749941446982,-153.01897109,0.00022822,4]
[365826865,1749941446996,-151.0,0.00022822,4]
[365826866,1749941447005,-151.0,0.00022822,4]
[365826867,1749941447016,-217.96894018,0.00022822,4]
[365826868,1749941447025,-679.0,0.00022822,4]
[365826869,1749941447036,-159.41069738,0.00022849,2]
[365826870,1749941447046,-679.0,0.00022849,4]
[365826871,1749941447055,-679.0,0.00022877,4]
[365826872,1749941447066,-1338.79870088,0.000229,8]
[365826873,1749941447076,-679.0,0.00022904,4]
[365826874,1749941447085,-679.0,0.00022932,4]
[365826875,1749941447094,-185.18498074,0.00022966,2]
[365826876,1749941447103,-1338.79870084,0.00023003,8]
[365826877,1749941447112,-600.0,0.00023009,2]
[365826878,1749941447122,-536.41,0.00023012,4]
[365826879,1749941447132,-536.41,0.00023012,4]
[365826880,1749941447141,-536.41,0.00023012,4]
[365826881,1749941447152,-536.41,0.00023012,4]
[365826882,1749941447161,-536.47,0.00023012,4]
[365826883,1749941447171,-460.0,0.00023013,4]
[365826884,1749941447180,-360.0,0.00023013,4]
[365826885,1749941447190,-460.0,0.00023013,4]
[365826886,1749941447199,-268.709724,0.00023013,4]